[Event "Titled Tuesday Blitz June 6 Early 2023"]
[White "Fridman, Daniel"]
[Black "Sourath Biswas"]
[WhiteFideId "11600454"]
[BlackFideId "35091484"]
[WhiteElo "2538"]
[BlackElo "2171"]
[Result "0-1"]
[Round "6"]
[TimeControl "180+2"]
[Date "2023.06.06"]
[WhiteClock "0:00:29"]
[BlackClock "0:00:35"]
[Board "29"]

1. d4 {[%clk 0:02:57]}  Nf6 {[%clk 0:03:00]} 2. Nf3 {[%clk 0:02:57]}  g6 {[%clk 0:03:01]} 3. g3 {[%clk 0:02:58]}  Bg7 {[%clk 0:03:01]} 4. Bg2 {[%clk 0:02:59]}  O-O {[%clk 0:03:02]} 5. c4 {[%clk 0:02:59]}  d6 {[%clk 0:03:03]} 6. Nc3 {[%clk 0:02:59]}  Nbd7 {[%clk 0:03:00]} 7. O-O {[%clk 0:02:59]}  e5 {[%clk 0:03:01]} 8. e4 {[%clk 0:03:00]}  b6 {[%clk 0:02:59]} 9. h3 {[%clk 0:02:59]}  Bb7 {[%clk 0:02:57]} 10. Re1 {[%clk 0:02:59]}  exd4 {[%clk 0:02:54]} 11. Nxd4 {[%clk 0:03:00]}  Re8 {[%clk 0:02:54]} 12. Bf4 {[%clk 0:02:49]}  Nc5 {[%clk 0:02:46]} 13. Qc2 {[%clk 0:02:06]}  Nfd7 {[%clk 0:01:06]} 14. Rad1 {[%clk 0:02:04]}  Bxd4 {[%clk 0:01:05]} 15. Rxd4 {[%clk 0:02:03]}  Ne6 {[%clk 0:01:06]} 16. Rdd1 {[%clk 0:01:53]}  Nxf4 {[%clk 0:01:06]} 17. gxf4 {[%clk 0:01:54]}  Qh4 {[%clk 0:01:06]} 18. Qd2 {[%clk 0:01:48]}  Nf6 {[%clk 0:01:03]} 19. e5 {[%clk 0:01:22]}  Bxg2 {[%clk 0:01:00]} 20. Kxg2 {[%clk 0:01:23]}  Nh5 {[%clk 0:00:56]} 21. Re4 {[%clk 0:01:23]}  f5 {[%clk 0:00:49]} 22. Rd4 {[%clk 0:00:59]}  c5 {[%clk 0:00:48]} 23. Rxd6 {[%clk 0:00:52]}  Nxf4+ {[%clk 0:00:48]} 24. Kf3 {[%clk 0:00:32]}  Qxh3+ {[%clk 0:00:46]} 25. Kxf4 {[%clk 0:00:32]}  g5+ {[%clk 0:00:47]} 26. Kxg5 {[%clk 0:00:30]}  Qg4+ {[%clk 0:00:38]} 27. Kh6 {[%clk 0:00:29]}  Qh4# {[%clk 0:00:35]} 0-1


[Site "https://www.chess.com"]

[Event "Titled Tuesday Blitz June 6 Early 2023"]
[White "Yonal, Timur"]
[Black "demon64fields"]
[WhiteFideId "44115725"]
[WhiteElo "1966"]
[BlackElo "2849"]
[Result "0-1"]
[Round "6"]
[TimeControl "180+2"]
[Date "2023.06.06"]
[WhiteClock "0:01:14"]
[BlackClock "0:01:55"]
[Board "30"]

1. e4 {[%clk 0:03:00]}  e6 {[%clk 0:02:59]} 2. d4 {[%clk 0:03:00]}  d5 {[%clk 0:03:00]} 3. Nc3 {[%clk 0:03:00]}  Bb4 {[%clk 0:03:00]} 4. e5 {[%clk 0:03:00]}  c5 {[%clk 0:03:00]} 5. a3 {[%clk 0:03:01]}  Bxc3+ {[%clk 0:03:00]} 6. bxc3 {[%clk 0:03:01]}  Nc6 {[%clk 0:03:00]} 7. Qg4 {[%clk 0:03:01]}  g6 {[%clk 0:03:00]} 8. Nf3 {[%clk 0:02:57]}  Bd7 {[%clk 0:02:58]} 9. Bd2 {[%clk 0:02:53]}  Qa5 {[%clk 0:02:57]} 10. a4 {[%clk 0:02:53]}  c4 {[%clk 0:02:57]} 11. h4 {[%clk 0:02:52]}  h6 {[%clk 0:02:56]} 12. h5 {[%clk 0:02:52]}  g5 {[%clk 0:02:56]} 13. Ng1 {[%clk 0:02:52]}  f5 {[%clk 0:02:55]} 14. exf6 {[%clk 0:02:50]}  Nxf6 {[%clk 0:02:55]} 15. Qd1 {[%clk 0:02:37]}  O-O-O {[%clk 0:02:54]} 16. Nf3 {[%clk 0:02:37]}  Ne4 {[%clk 0:02:51]} 17. Ra3 {[%clk 0:02:35]}  Rhf8 {[%clk 0:02:50]} 18. Be2 {[%clk 0:02:33]}  g4 {[%clk 0:02:48]} 19. Bxh6 {[%clk 0:02:29]}  gxf3 {[%clk 0:02:46]} 20. gxf3 {[%clk 0:02:28]}  Nxc3 {[%clk 0:02:13]} 21. Qd2 {[%clk 0:02:23]}  Nxe2 {[%clk 0:02:12]} 22. Qxa5 {[%clk 0:02:19]}  Nxa5 {[%clk 0:02:13]} 23. Bxf8 {[%clk 0:02:18]}  Nxd4 {[%clk 0:02:14]} 24. Be7 {[%clk 0:02:09]}  Re8 {[%clk 0:02:11]} 25. Bd6 {[%clk 0:01:51]}  Nxc2+ {[%clk 0:02:11]} 26. Kd2 {[%clk 0:01:52]}  Nxa3 {[%clk 0:02:11]} 27. Bxa3 {[%clk 0:01:52]}  e5 {[%clk 0:02:06]} 28. h6 {[%clk 0:01:50]}  Bf5 {[%clk 0:02:07]} 29. h7 {[%clk 0:01:37]}  Rh8 {[%clk 0:02:06]} 30. Rh5 {[%clk 0:01:37]}  Bxh7 {[%clk 0:02:04]} 31. Be7 {[%clk 0:01:24]}  d4 {[%clk 0:01:55]} 32. f4 {[%clk 0:01:15]}  c3+ {[%clk 0:01:55]} 33. Kc1 {[%clk 0:01:14]}  Nb3+ {[%clk 0:01:55]} 0-1


[Site "https://www.chess.com"]

[Event "Titled Tuesday Blitz June 6 Early 2023"]
[White "Gomez Ledo, Roberto Carlos"]
[Black "Makarian, Rudik"]
[WhiteFideId "3507076"]
[BlackFideId "44105681"]
[WhiteElo "2378"]
[BlackElo "2451"]
[Result "0-1"]
[Round "6"]
[TimeControl "180+2"]
[Date "2023.06.06"]
[WhiteClock "0:00:33"]
[BlackClock "0:01:49"]
[Board "31"]

1. d4 {[%clk 0:03:00]}  Nf6 {[%clk 0:03:00]} 2. Bf4 {[%clk 0:02:59]}  c5 {[%clk 0:02:59]} 3. c3 {[%clk 0:02:59]}  d5 {[%clk 0:02:57]} 4. e3 {[%clk 0:02:59]}  Nc6 {[%clk 0:02:58]} 5. Nd2 {[%clk 0:02:58]}  cxd4 {[%clk 0:02:55]} 6. cxd4 {[%clk 0:02:52]}  Bf5 {[%clk 0:02:52]} 7. Rc1 {[%clk 0:02:49]}  e6 {[%clk 0:02:52]} 8. a3 {[%clk 0:02:47]}  Bd6 {[%clk 0:02:50]} 9. Bxd6 {[%clk 0:02:46]}  Qxd6 {[%clk 0:02:51]} 10. Ngf3 {[%clk 0:02:47]}  O-O {[%clk 0:02:51]} 11. Be2 {[%clk 0:02:46]}  Rac8 {[%clk 0:02:52]} 12. O-O {[%clk 0:02:46]}  a6 {[%clk 0:02:52]} 13. Nb3 {[%clk 0:02:43]}  Ne4 {[%clk 0:02:45]} 14. Nfd2 {[%clk 0:02:38]}  Rc7 {[%clk 0:02:37]} 15. Nxe4 {[%clk 0:02:36]}  Bxe4 {[%clk 0:02:38]} 16. Nc5 {[%clk 0:02:35]}  Bg6 {[%clk 0:02:38]} 17. b4 {[%clk 0:02:33]}  Rfc8 {[%clk 0:02:37]} 18. Qd2 {[%clk 0:02:14]}  Ne7 {[%clk 0:02:29]} 19. h3 {[%clk 0:02:08]}  Nf5 {[%clk 0:02:25]} 20. Bd3 {[%clk 0:02:05]}  Qe7 {[%clk 0:02:23]} 21. Bxf5 {[%clk 0:01:55]}  Bxf5 {[%clk 0:02:24]} 22. a4 {[%clk 0:01:44]}  b6 {[%clk 0:02:22]} 23. Nxa6 {[%clk 0:01:41]}  Rc2 {[%clk 0:02:22]} 24. Rxc2 {[%clk 0:01:38]}  Rxc2 {[%clk 0:02:23]} 25. Qd1 {[%clk 0:01:34]}  h5 {[%clk 0:02:13]} 26. Qf3 {[%clk 0:01:28]}  Bd3 {[%clk 0:02:07]} 27. Qd1 {[%clk 0:01:14]}  Bxf1 {[%clk 0:02:05]} 28. Kxf1 {[%clk 0:01:05]}  Rc8 {[%clk 0:01:56]} 29. Kg1 {[%clk 0:01:00]}  g6 {[%clk 0:01:55]} 30. Qe2 {[%clk 0:00:57]}  Rc4 {[%clk 0:01:54]} 31. Qf3 {[%clk 0:00:55]}  Kg7 {[%clk 0:01:54]} 32. Qf4 {[%clk 0:00:54]}  Qf6 {[%clk 0:01:50]} 33. Qg3 {[%clk 0:00:46]}  h4 {[%clk 0:01:50]} 34. Qg4 {[%clk 0:00:33]}  Rc1+ {[%clk 0:01:48]} 35. Kh2 {[%clk 0:00:33]}  Qxf2 {[%clk 0:01:49]} 0-1


[Site "https://www.chess.com"]

[Event "Titled Tuesday Blitz June 6 Early 2023"]
[White "Shuvalova, Polina"]
[Black "Talibov, Shiroghlan"]
[WhiteFideId "24171760"]
[BlackFideId "13429078"]
[WhiteElo "2281"]
[BlackElo "2274"]
[Result "1/2-1/2"]
[Round "6"]
[TimeControl "180+2"]
[Date "2023.06.06"]
[WhiteClock "0:00:46"]
[BlackClock "0:00:52"]
[Board "32"]

1. e4 {[%clk 0:03:00]}  c6 {[%clk 0:02:55]} 2. d4 {[%clk 0:02:55]}  d5 {[%clk 0:02:55]} 3. exd5 {[%clk 0:02:55]}  cxd5 {[%clk 0:02:56]} 4. Bd3 {[%clk 0:02:53]}  Nc6 {[%clk 0:02:56]} 5. c3 {[%clk 0:02:52]}  g6 {[%clk 0:02:54]} 6. Nf3 {[%clk 0:02:47]}  Bg4 {[%clk 0:02:52]} 7. h3 {[%clk 0:02:45]}  Bxf3 {[%clk 0:02:52]} 8. Qxf3 {[%clk 0:02:45]}  e6 {[%clk 0:02:53]} 9. O-O {[%clk 0:02:45]}  Bg7 {[%clk 0:02:53]} 10. Qe2 {[%clk 0:02:40]}  Nge7 {[%clk 0:02:52]} 11. Nd2 {[%clk 0:02:41]}  O-O {[%clk 0:02:51]} 12. Nf3 {[%clk 0:02:41]}  Qc7 {[%clk 0:02:51]} 13. g3 {[%clk 0:02:40]}  Rfe8 {[%clk 0:02:48]} 14. Bf4 {[%clk 0:02:40]}  Qd7 {[%clk 0:02:48]} 15. h4 {[%clk 0:02:36]}  f6 {[%clk 0:02:43]} 16. Rfe1 {[%clk 0:02:30]}  e5 {[%clk 0:02:32]} 17. dxe5 {[%clk 0:02:23]}  fxe5 {[%clk 0:02:32]} 18. Nxe5 {[%clk 0:01:58]}  Nxe5 {[%clk 0:02:29]} 19. Bxe5 {[%clk 0:01:58]}  Nc6 {[%clk 0:02:28]} 20. f4 {[%clk 0:01:56]}  Nxe5 {[%clk 0:02:20]} 21. fxe5 {[%clk 0:01:55]}  Rxe5 {[%clk 0:02:20]} 22. Qg2 {[%clk 0:01:51]}  Rae8 {[%clk 0:02:08]} 23. Rxe5 {[%clk 0:01:50]}  Bxe5 {[%clk 0:02:09]} 24. Rf1 {[%clk 0:01:43]}  Kg7 {[%clk 0:02:09]} 25. h5 {[%clk 0:01:41]}  Qg4 {[%clk 0:02:02]} 26. hxg6 {[%clk 0:01:31]}  hxg6 {[%clk 0:01:56]} 27. Qf3 {[%clk 0:01:30]}  Qxg3+ {[%clk 0:01:44]} 28. Qxg3 {[%clk 0:01:30]}  Bxg3 {[%clk 0:01:45]} 29. Kg2 {[%clk 0:01:31]}  Bd6 {[%clk 0:01:43]} 30. Rf2 {[%clk 0:01:22]}  b6 {[%clk 0:01:39]} 31. Re2 {[%clk 0:01:22]}  Rxe2+ {[%clk 0:01:27]} 32. Bxe2 {[%clk 0:01:23]}  Kf6 {[%clk 0:01:28]} 33. Kf3 {[%clk 0:01:19]}  Ke5 {[%clk 0:01:27]} 34. Bd3 {[%clk 0:01:17]}  g5 {[%clk 0:01:27]} 35. b3 {[%clk 0:01:12]}  Ba3 {[%clk 0:01:20]} 36. Kg4 {[%clk 0:01:07]}  Bb2 {[%clk 0:01:09]} 37. c4 {[%clk 0:00:51]}  dxc4 {[%clk 0:01:07]} 38. Bxc4 {[%clk 0:00:50]}  Bc1 {[%clk 0:01:03]} 39. a4 {[%clk 0:00:50]}  Kd4 {[%clk 0:00:52]} 40. Bg8 {[%clk 0:00:48]}  Kc3 {[%clk 0:00:52]} 41. Bf7 {[%clk 0:00:46]} 1/2-1/2


[Site "https://www.chess.com"]

[Event "Titled Tuesday Blitz June 6 Early 2023"]
[White "Amilal Munkhdalai"]
[Black "Zheenbekov, Nurgazy"]
[WhiteFideId "4903250"]
[BlackFideId "13800485"]
[WhiteElo "2293"]
[BlackElo "1975"]
[Result "1/2-1/2"]
[Round "6"]
[TimeControl "180+2"]
[Date "2023.06.06"]
[WhiteClock "0:01:13"]
[BlackClock "0:00:20"]
[Board "41"]

1. e4 {[%clk 0:02:59]}  e5 {[%clk 0:02:57]} 2. Nf3 {[%clk 0:03:00]}  Nc6 {[%clk 0:02:56]} 3. Bb5 {[%clk 0:03:00]}  a6 {[%clk 0:02:56]} 4. Ba4 {[%clk 0:03:00]}  Nf6 {[%clk 0:02:56]} 5. d3 {[%clk 0:03:00]}  b5 {[%clk 0:02:55]} 6. Bb3 {[%clk 0:02:59]}  Be7 {[%clk 0:02:55]} 7. O-O {[%clk 0:02:59]}  O-O {[%clk 0:02:55]} 8. Re1 {[%clk 0:02:59]}  d6 {[%clk 0:02:54]} 9. c3 {[%clk 0:02:59]}  Na5 {[%clk 0:02:53]} 10. Bc2 {[%clk 0:02:59]}  c5 {[%clk 0:02:53]} 11. d4 {[%clk 0:02:59]}  Bg4 {[%clk 0:02:35]} 12. d5 {[%clk 0:02:58]}  c4 {[%clk 0:02:31]} 13. h3 {[%clk 0:02:54]}  Bd7 {[%clk 0:02:26]} 14. b4 {[%clk 0:02:54]}  cxb3 {[%clk 0:02:19]} 15. axb3 {[%clk 0:02:54]}  h6 {[%clk 0:02:14]} 16. Be3 {[%clk 0:02:53]}  Qc7 {[%clk 0:02:09]} 17. Bd3 {[%clk 0:02:51]}  Nh7 {[%clk 0:01:50]} 18. Qc2 {[%clk 0:02:42]}  Nb7 {[%clk 0:01:36]} 19. b4 {[%clk 0:02:41]}  a5 {[%clk 0:01:35]} 20. Na3 {[%clk 0:02:34]}  axb4 {[%clk 0:01:26]} 21. cxb4 {[%clk 0:02:34]}  Qxc2 {[%clk 0:01:26]} 22. Nxc2 {[%clk 0:02:34]}  Ra4 {[%clk 0:01:24]} 23. Rxa4 {[%clk 0:02:34]}  bxa4 {[%clk 0:01:24]} 24. Na3 {[%clk 0:02:35]}  Rb8 {[%clk 0:01:13]} 25. Rc1 {[%clk 0:02:34]}  Bd8 {[%clk 0:01:12]} 26. Ba6 {[%clk 0:02:19]}  f5 {[%clk 0:01:10]} 27. Ba7 {[%clk 0:02:08]}  Ra8 {[%clk 0:01:09]} 28. Bxb7 {[%clk 0:02:07]}  Rxa7 {[%clk 0:01:09]} 29. Bc8 {[%clk 0:02:05]}  fxe4 {[%clk 0:01:03]} 30. Nd2 {[%clk 0:02:03]}  Nf6 {[%clk 0:01:02]} 31. Bxd7 {[%clk 0:02:02]}  Rxd7 {[%clk 0:01:02]} 32. b5 {[%clk 0:02:01]}  Bb6 {[%clk 0:00:56]} 33. Rc6 {[%clk 0:01:57]}  e3 {[%clk 0:00:50]} 34. Ndc4 {[%clk 0:01:48]}  exf2+ {[%clk 0:00:50]} 35. Kf1 {[%clk 0:01:48]}  Bd4 {[%clk 0:00:47]} 36. Nc2 {[%clk 0:01:38]}  Bc5 {[%clk 0:00:46]} 37. Nxe5 {[%clk 0:01:35]}  Rb7 {[%clk 0:00:43]} 38. Nd3 {[%clk 0:01:32]}  Rxb5 {[%clk 0:00:43]} 39. Nxc5 {[%clk 0:01:32]}  Rxc5 {[%clk 0:00:42]} 40. Rxc5 {[%clk 0:01:32]}  dxc5 {[%clk 0:00:42]} 41. d6 {[%clk 0:01:33]}  Kf7 {[%clk 0:00:40]} 42. Kxf2 {[%clk 0:01:34]}  Ke6 {[%clk 0:00:37]} 43. Ke3 {[%clk 0:01:34]}  Kxd6 {[%clk 0:00:37]} 44. Kd3 {[%clk 0:01:35]}  Kd5 {[%clk 0:00:33]} 45. Ne3+ {[%clk 0:01:35]}  Kc6 {[%clk 0:00:33]} 46. Nf5 {[%clk 0:01:31]}  Ne8 {[%clk 0:00:33]} 47. Kc3 {[%clk 0:01:26]}  h5 {[%clk 0:00:32]} 48. g4 {[%clk 0:01:19]}  hxg4 {[%clk 0:00:32]} 49. hxg4 {[%clk 0:01:20]}  g5 {[%clk 0:00:32]} 50. Nh6 {[%clk 0:01:13]}  Nf6 {[%clk 0:00:31]} 51. Nf7 {[%clk 0:01:13]}  Ne4+ {[%clk 0:00:25]} 52. Kb2 {[%clk 0:01:13]}  Kd5 {[%clk 0:00:23]} 53. Ka3 {[%clk 0:01:13]}  c4 {[%clk 0:00:23]} 54. Kxa4 {[%clk 0:01:14]}  Kd4 {[%clk 0:00:23]} 55. Ka3 {[%clk 0:01:14]}  c3 {[%clk 0:00:23]} 56. Kb3 {[%clk 0:01:13]}  Kd3 {[%clk 0:00:21]} 57. Ne5+ {[%clk 0:01:14]}  Kd2 {[%clk 0:00:19]} 58. Nf3+ {[%clk 0:01:13]}  Ke3 {[%clk 0:00:19]} 59. Nxg5 {[%clk 0:01:13]}  Nxg5 {[%clk 0:00:20]} 60. Kxc3 {[%clk 0:01:14]}  Kf4 {[%clk 0:00:20]} 61. Kb4 {[%clk 0:01:13]}  Kxg4 {[%clk 0:00:20]} 1/2-1/2


[Site "https://www.chess.com"]

[Event "Titled Tuesday Blitz June 6 Early 2023"]
[White "Korchmar, Vasiliy"]
[Black "zsizsi99"]
[WhiteFideId "24131750"]
[WhiteElo "2370"]
[BlackElo "2440"]
[Result "1-0"]
[Round "6"]
[TimeControl "180+2"]
[Date "2023.06.06"]
[WhiteClock "0:00:06"]
[BlackClock "0:00:05"]
[Board "44"]

1. e4 {[%clk 0:03:00]}  c5 {[%clk 0:02:59]} 2. Nf3 {[%clk 0:03:01]}  d6 {[%clk 0:03:00]} 3. d4 {[%clk 0:03:01]}  cxd4 {[%clk 0:03:01]} 4. Nxd4 {[%clk 0:03:02]}  Nf6 {[%clk 0:03:01]} 5. Nc3 {[%clk 0:03:02]}  a6 {[%clk 0:03:02]} 6. Be2 {[%clk 0:03:02]}  e5 {[%clk 0:03:01]} 7. Nb3 {[%clk 0:03:03]}  Be7 {[%clk 0:03:02]} 8. O-O {[%clk 0:03:02]}  O-O {[%clk 0:03:02]} 9. Be3 {[%clk 0:03:02]}  b6 {[%clk 0:02:59]} 10. Bf3 {[%clk 0:02:50]}  Bb7 {[%clk 0:02:57]} 11. Qd2 {[%clk 0:02:46]}  Nbd7 {[%clk 0:02:57]} 12. Rfd1 {[%clk 0:02:46]}  Qc7 {[%clk 0:02:45]} 13. Rac1 {[%clk 0:02:33]}  Rac8 {[%clk 0:02:17]} 14. h3 {[%clk 0:02:33]}  Nc5 {[%clk 0:02:09]} 15. Nd5 {[%clk 0:02:26]}  Nfxe4 {[%clk 0:01:36]} 16. Bxe4 {[%clk 0:00:56]}  Nxe4 {[%clk 0:01:35]} 17. Nxc7 {[%clk 0:00:45]}  Nxd2 {[%clk 0:01:35]} 18. Rxd2 {[%clk 0:00:42]}  Rxc7 {[%clk 0:01:35]} 19. Bxb6 {[%clk 0:00:43]}  Rd7 {[%clk 0:01:22]} 20. Nc5 {[%clk 0:00:38]}  Bc6 {[%clk 0:01:12]} 21. Nxd7 {[%clk 0:00:38]}  Bxd7 {[%clk 0:01:12]} 22. Rcd1 {[%clk 0:00:34]}  Be6 {[%clk 0:01:09]} 23. Bc7 {[%clk 0:00:32]}  d5 {[%clk 0:00:38]} 24. Bxe5 {[%clk 0:00:31]}  Rc8 {[%clk 0:00:38]} 25. c3 {[%clk 0:00:30]}  f6 {[%clk 0:00:32]} 26. Bg3 {[%clk 0:00:26]}  Rc5 {[%clk 0:00:31]} 27. Re2 {[%clk 0:00:24]}  Kf7 {[%clk 0:00:32]} 28. Rde1 {[%clk 0:00:24]}  Rc6 {[%clk 0:00:32]} 29. Bf4 {[%clk 0:00:23]}  Bc5 {[%clk 0:00:27]} 30. Be3 {[%clk 0:00:23]}  Bxe3 {[%clk 0:00:20]} 31. Rxe3 {[%clk 0:00:23]}  Rb6 {[%clk 0:00:20]} 32. R1e2 {[%clk 0:00:22]}  a5 {[%clk 0:00:16]} 33. Rxe6 {[%clk 0:00:17]}  Rxe6 {[%clk 0:00:15]} 34. Rxe6 {[%clk 0:00:18]}  Kxe6 {[%clk 0:00:15]} 35. Kf1 {[%clk 0:00:19]}  d4 {[%clk 0:00:15]} 36. c4 {[%clk 0:00:14]}  d3 {[%clk 0:00:14]} 37. Ke1 {[%clk 0:00:14]}  Ke5 {[%clk 0:00:14]} 38. Kd2 {[%clk 0:00:14]}  Kd4 {[%clk 0:00:15]} 39. b3 {[%clk 0:00:13]}  f5 {[%clk 0:00:15]} 40. h4 {[%clk 0:00:09]}  f4 {[%clk 0:00:13]} 41. h5 {[%clk 0:00:09]}  g5 {[%clk 0:00:11]} 42. f3 {[%clk 0:00:06]}  h6 {[%clk 0:00:11]} 43. a3 {[%clk 0:00:07]}  g4 {[%clk 0:00:06]} 44. fxg4 {[%clk 0:00:04]}  Ke4 {[%clk 0:00:06]} 45. c5 {[%clk 0:00:05]}  Kd5 {[%clk 0:00:04]} 46. g5 {[%clk 0:00:05]}  hxg5 {[%clk 0:00:03]} 47. Kxd3 {[%clk 0:00:05]}  g4 {[%clk 0:00:03]} 48. h6 {[%clk 0:00:05]}  Kxc5 {[%clk 0:00:04]} 49. h7 {[%clk 0:00:05]}  g3 {[%clk 0:00:04]} 50. Ke2 {[%clk 0:00:05]}  f3+ {[%clk 0:00:05]} 51. Kxf3 {[%clk 0:00:06]} 1-0


[Site "https://www.chess.com"]

[Event "Titled Tuesday Blitz June 6 Early 2023"]
[White "Koshulyan, Egor A."]
[Black "Hajiyev, Kanan"]
[WhiteFideId "24237000"]
[BlackFideId "13404148"]
[WhiteElo "2216"]
[BlackElo "2115"]
[Result "1-0"]
[Round "6"]
[TimeControl "180+2"]
[Date "2023.06.06"]
[WhiteClock "0:00:36"]
[BlackClock "0:00:02"]
[Board "50"]

1. e4 {[%clk 0:03:00]}  c6 {[%clk 0:02:55]} 2. d4 {[%clk 0:03:00]}  d5 {[%clk 0:02:56]} 3. e5 {[%clk 0:02:57]}  a6 {[%clk 0:02:55]} 4. f4 {[%clk 0:02:56]}  Bf5 {[%clk 0:02:53]} 5. Nf3 {[%clk 0:02:56]}  e6 {[%clk 0:02:53]} 6. Be2 {[%clk 0:02:55]}  c5 {[%clk 0:02:54]} 7. c3 {[%clk 0:02:56]}  Nc6 {[%clk 0:02:54]} 8. O-O {[%clk 0:02:56]}  Qb6 {[%clk 0:02:49]} 9. Kh1 {[%clk 0:02:55]}  cxd4 {[%clk 0:02:37]} 10. cxd4 {[%clk 0:02:56]}  Bg4 {[%clk 0:02:33]} 11. Be3 {[%clk 0:02:49]}  Qxb2 {[%clk 0:02:30]} 12. Nbd2 {[%clk 0:02:50]}  Qc3 {[%clk 0:02:13]} 13. Bf2 {[%clk 0:02:46]}  Ba3 {[%clk 0:02:05]} 14. Rb1 {[%clk 0:02:43]}  b5 {[%clk 0:01:56]} 15. Nb3 {[%clk 0:02:41]}  Nh6 {[%clk 0:01:27]} 16. Be1 {[%clk 0:02:40]}  Qe3 {[%clk 0:01:27]} 17. Bd2 {[%clk 0:02:23]}  Qe4 {[%clk 0:01:26]} 18. Re1 {[%clk 0:02:21]}  Qg6 {[%clk 0:00:57]} 19. h3 {[%clk 0:02:15]}  Bf5 {[%clk 0:00:52]} 20. Nh4 {[%clk 0:02:13]}  Qg3 {[%clk 0:00:52]} 21. Nxf5 {[%clk 0:02:05]}  Nxf5 {[%clk 0:00:53]} 22. Bg4 {[%clk 0:02:00]}  O-O {[%clk 0:00:30]} 23. Re2 {[%clk 0:01:56]}  Ncxd4 {[%clk 0:00:26]} 24. Nxd4 {[%clk 0:01:49]}  Nxd4 {[%clk 0:00:26]} 25. Re3 {[%clk 0:01:49]}  Qxf4 {[%clk 0:00:22]} 26. Rxa3 {[%clk 0:01:48]}  Qxe5 {[%clk 0:00:22]} 27. Bc3 {[%clk 0:01:49]}  Qd6 {[%clk 0:00:20]} 28. Bb4 {[%clk 0:01:49]}  Qf4 {[%clk 0:00:16]} 29. Bxf8 {[%clk 0:01:41]}  Rxf8 {[%clk 0:00:17]} 30. Rxa6 {[%clk 0:01:40]}  h5 {[%clk 0:00:13]} 31. Rb4 {[%clk 0:01:37]}  e5 {[%clk 0:00:11]} 32. Bxh5 {[%clk 0:01:33]}  g6 {[%clk 0:00:10]} 33. Bg4 {[%clk 0:01:33]}  Kg7 {[%clk 0:00:10]} 34. Ra3 {[%clk 0:01:25]}  Rh8 {[%clk 0:00:09]} 35. Rf3 {[%clk 0:01:19]}  Qe4 {[%clk 0:00:10]} 36. Rf2 {[%clk 0:01:14]}  Qe3 {[%clk 0:00:05]} 37. Rbb2 {[%clk 0:01:10]}  f5 {[%clk 0:00:03]} 38. Bxf5 {[%clk 0:00:42]}  Nxf5 {[%clk 0:00:03]} 39. Qxd5 {[%clk 0:00:36]}  Ng3+ {[%clk 0:00:01]} 40. Kh2 {[%clk 0:00:37]}  Qf4 {[%clk 0:00:01]} 41. Rxf4 {[%clk 0:00:36]}  exf4 {[%clk 0:00:02]} 42. Qd4+ {[%clk 0:00:36]}  Kh7 {[%clk 0:00:01]} 43. Qxf4 {[%clk 0:00:36]}  Nf5 {[%clk 0:00:02]} 44. Rxb5 {[%clk 0:00:36]}  Rf8 {[%clk 0:00:03]} 45. Rb7+ {[%clk 0:00:36]}  Kg8 {[%clk 0:00:02]} 46. Qc7 {[%clk 0:00:36]}  Re8 {[%clk 0:00:01]} 47. Qh7+ {[%clk 0:00:35]}  Kf8 {[%clk 0:00:02]} 48. Qh8# {[%clk 0:00:36]} 1-0


[Site "https://www.chess.com"]